[Event "Women Accentus DAQ Blitz 2022"]
[Site "Biel"]
[Date "2022.07.17"]
[Round "1.1"]
[White "Zhuang, Yongzhe"]
[Black "Cornileau, Juliette"]
[Result "1-0"]
[ECO "B10"]
[WhiteElo "1838"]
[BlackElo "1900"]
[Annotator "TA"]
[PlyCount "27"]
[EventDate "2022.07.17"]
[EventType "tourn"]
[EventCountry "SUI"]
[SourceTitle "playchess.com"]
[Source "ChessBase"]
[SourceQuality "1"]
[TimeControl "180+2"]

{[%evp 11,27,2,0,7,54,62,388,320,373,366,371,374,480,470,520,517,2093,2047]} 1. e4 {[%emt 0:00:03]} c6 {[%emt 0:00:00]} 2. c4 {[%emt 0:00:01]} d5 {[%emt 0:00:01]} 3. exd5 {[%emt 0:00:02]} cxd5 {[%emt 0:00:01]} 4. cxd5 {[%emt 0:00:02]} Nf6 {[%emt 0:00:03]} 5. Nc3 {[%emt 0:00:02]} Nxd5 {[%emt 0:00:03]} 6. Nf3 {[%emt 0:00:01]} Nc6 {[%emt 0:00:06]} 7. Bb5 {[%emt 0:00:02] B10: Caro-Kann: 2 d3 and 2 c4.} Bg4 {[%emt 0:00:14]} (7... e6 $11) 8. Qa4 $14 {[%emt 0:00:22][%csl LRc6,LRg4] [#]} Ndb4 $146 {[%emt 0:00:45][%mdl 8192] [#]} ({Predecessor:} 8... Nxc3 9. Bxc6+ bxc6 10. Qxc6+ Bd7 11. Qxc3 Rc8 12. Qe3 Bb5 13. a4 Ba6 14. b4 e6 {1-0 (35) Boyer,M (2412)-Dushyant,S (2270) Chess.com INT 2021}) 9. Bxc6+ {[%emt 0:00:08] White is winning.} bxc6 {[%emt 0:00:37]} 10. Qxb4 {[%emt 0:00:01]} Bxf3 11. gxf3 {[%emt 0:00:01]} e5 {[%emt 0:00:04]} 12. Qe4 {[%emt 0:00:08][%csl LRc6,LRe5] White is clearly winning.} Qf6 {[%emt 0:00:07]} 13. d4 {[%emt 0:00:12] Inhibits Bc5.} Bd6 {[%emt 0:00:12]} (13... Qe6 $142 14. dxe5 Rb8) 14. Qxc6+ {[%emt 0:00:07] Black got outplayed after the opening.  Weighted Error Value: White=0.11 (very precise) /Black=1.37} 1-0

[Event "Women Accentus DAQ Blitz 2022"]
[Site "Biel"]
[Date "2022.07.17"]
[Round "1.2"]
[White "Avilova, Yulia"]
[Black "Tamrazyan, Gohar"]
[Result "0-1"]
[ECO "A13"]
[WhiteElo "1646"]
[BlackElo "1916"]
[Annotator "TA"]
[PlyCount "76"]
[EventDate "2022.07.17"]
[EventType "tourn"]
[EventCountry "SUI"]
[SourceTitle "playchess.com"]
[Source "ChessBase"]
[SourceQuality "1"]
[TimeControl "180+2"]

{[%evp 18,76,40,27,37,51,67,20,40,36,52,35,38,31,35,33,60,54,92,35,30,16,8,0,80,77,83,81,98,22,18,22,129,122,143,130,132,102,108,0,0,-781,-777,-774,-769,-769,-764,-747,-648,-706,-508,-487,-421,-886,-866,-1198,-1197,-1160,-1153,-29986,-29987]} 1. Nf3 {[%emt 0:00:01]} d5 {[%emt 0:00:00]} 2. c4 {[%emt 0:00:01]} e6 {[%emt 0:00:01]} 3. e3 {[%emt 0:00:01]} c5 {[%emt 0:00:01]} 4. cxd5 {[%emt 0:00:02]} exd5 {[%emt 0:00:01]} 5. d4 {[%emt 0:00:01]} Nc6 {[%emt 0:00:01]} 6. Nc3 {[%emt 0:00:01]} Nf6 {[%emt 0:00:01]} 7. Be2 {[%emt 0:00:01]} Be7 {[%emt 0:00:09]} 8. O-O {[%emt 0:00:01]} O-O {[%emt 0:00:02]} 9. b3 {[%emt 0:00:03]} Bg4 {[%emt 0:00:32]} 10. Bb2 {[%emt 0:00:06]} cxd4 {[%emt 0:00:21] A13: English Opening: 1...e6.} 11. Nxd4 {[%emt 0:00:07]} Bxe2 {[%emt 0:00:02]} 12. Ndxe2 {[%emt 0:00:02]} (12. Ncxe2 $14 {might be stronger.} Qd7 13. Rc1) 12... Rc8 {[%emt 0:00:03] [#] The position is equal.} 13. Qd2 $146 {[%emt 0:00:07]} ({Predecessor:} 13. Qd3 Qd7 14. Rad1 Rfd8 15. h3 Ne5 16. Qb1 Nf3+ 17. gxf3 Qxh3 18. Ng3 g6 19. Nce2 {1-0 (29) Ollier,P (2373)-Zuloaga Erauskin,M (1937) San Sebastian 2019}) 13... Bb4 {[%emt 0:00:10]} 14. a3 {[%emt 0:00:09]} Ne4 {[%emt 0:00:21]} 15. Qc2 {[%emt 0:00:03]} Bxc3 {[%emt 0:00:01]} 16. Nxc3 {[%emt 0:00:03]} Nf6 {[%emt 0:00:06]} 17. Rfd1 {[%emt 0:00:02]} Qd7 {[%emt 0:00:12]} 18. Rd2 {[%emt 0:00:08]} (18. Qd3 $16) 18... Qe6 {[%emt 0:00:05]} 19. Rad1 {[%emt 0:00:03]} Rfd8 {[%emt 0:00:01]} 20. Ba1 {[%emt 0:00:11]} Ne7 {[%emt 0:00:02]} (20... d4 $11 21. exd4 Rxd4 $1) 21. Qb2 $16 {[%emt 0:00:02]} a6 {[%emt 0:00:09]} 22. e4 {[%emt 0:00:21]} d4 {[%emt 0:00:05] [#]} 23. Rxd4 {[%emt 0:00:06]} ({White should play} 23. f3 $1 $16) 23... Rxd4 $11 {[%emt 0:00:03]} 24. Rxd4 {[%emt 0:00:02]} Nc6 {[%emt 0:00:02]} (24... Nf5 $1 $11 25. Rb4 a5) 25. Rd1 $16 {[%emt 0:00:07]} Qg4 {[%emt 0:00:08]} 26. f3 {[%emt 0:00:05]} Qg5 {[%emt 0:00:05]} 27. Nd5 {[%emt 0:00:04]} Nxd5 {[%emt 0:00:10]} 28. Rxd5 {[%emt 0:00:01]} ({White must play} 28. exd5 $16 Nb8 29. Qe2) 28... Ne5 $11 {[%emt 0:00:36] Strongly threatening ...Qe3+.} 29. Rxe5 $4 {[%emt 0:00:27][%mdl 8192]} (29. Kf2 $11 Qh4+ 30. Kf1) 29... Qe3+ $19 {[%emt 0:00:01]} 30. Kf1 {[%emt 0:00:10]} Rc1+ {[%emt 0:00:01]} 31. Qxc1 {[%emt 0:00:02]} Qxc1+ {[%emt 0:00:01][%mdl 4096] Endgame KQ-KRB} 32. Ke2 {[%emt 0:00:03]} Qc2+ {[%emt 0:00:09]} 33. Ke3 {[%emt 0:00:08][%cal Re5e8]} Qxb3+ {[%emt 0:00:04]} 34. Kf4 {[%emt 0:00:10][%cal Re5e8]} f6 {[%emt 0:00:03]} 35. Re7 {[%emt 0:00:11]} (35. Rd5 $142) 35... Qxa3 {[%emt 0:00:04]} 36. Rxb7 {[%emt 0:00:10]} Qxa1 {[%emt 0:00:00]} 37. Rb8+ {[%emt 0:00:02]} Kf7 {[%emt 0:00:01]} 38. h4 {[%emt 0:00:02]} Qe5+ {Weighted Error Value: White=1.00/Black=0.34} 0-1

[Event "Women Accentus DAQ Blitz 2022"]
[Site "Biel"]
[Date "2022.07.17"]
[Round "1.4"]
[White "Sumarriva Paulin, Laura"]
[Black "Moracchini, Margaux"]
[Result "0-1"]
[ECO "B23"]
[WhiteElo "1913"]
[BlackElo "1937"]
[Annotator "TA"]
[PlyCount "104"]
[EventDate "2022.07.17"]
[EventType "tourn"]
[EventCountry "SUI"]
[SourceTitle "playchess.com"]
[Source "ChessBase"]
[SourceQuality "1"]
[TimeControl "180+2"]

{[%evp 9,104,7,0,0,34,9,6,0,3,6,1,16,20,-20,24,9,13,-6,1,-6,-5,-5,4,-5,8,-35,-32,-45,-5,-6,18,24,38,33,26,0,0,-56,15,-10,166,201,213,178,312,277,412,408,420,88,83,8,8,8,8,-33,19,-1266,-735,-708,-671,-596,-509,-654,-641,-29971,-5631,-5622,-5618,-5527,-5398,-2192,-2068,-1602,0,-1241,-1357,-1085,-770,-1075,0,-965,-735,-921,-926,-961,-913,-839,-658,-894,-842,-683,-583,-29988,-29989,-29989,-29990]} 1. e4 {[%emt 0:00:02]} c5 {[%emt 0:00:00]} 2. Nc3 {[%emt 0:00:01]} d6 {[%emt 0:00:02]} 3. g3 {[%emt 0:00:02]} g6 {[%emt 0:00:06]} 4. Bg2 {[%emt 0:00:02]} Bg7 {[%emt 0:00:02]} 5. d3 {[%emt 0:00:02]} e6 {[%emt 0:00:09]} 6. Nge2 {[%emt 0:00:02] B23: Closed Sicilian: Lines without g3.} Ne7 {[%emt 0:00:04]} 7. O-O {[%emt 0:00:04]} O-O {[%emt 0:00:03]} 8. Bg5 {[%emt 0:00:05] The position is equal.} h6 {[%emt 0:00:07]} 9. Be3 {[%emt 0:00:03]} Nbc6 {[%emt 0:00:06][%cal Bb8c6,Bc6d4,Bd4e2][%mdl 32]} 10. Qd2 {[%emt 0:00:02]} Kh7 {[%emt 0:00:02]} 11. h3 {[%emt 0:00:14]} a6 {[%emt 0:00:06] [#]} 12. f4 $146 {[%emt 0:00:21]} ({Predecessor:} 12. d4 cxd4 13. Nxd4 Nxd4 14. Bxd4 e5 15. Be3 Qc7 16. Rad1 Rd8 17. Na4 Qc6 18. Nb6 {1-0 (35) Djordjevic,D (2166)-Smietanska,W (2013) Chess.com INT 2020}) 12... Nd4 {[%emt 0:00:08]} 13. Nd1 {[%emt 0:00:16]} b5 {[%emt 0:00:30]} 14. c3 {[%emt 0:00:03]} Nxe2+ {[%emt 0:00:03]} 15. Qxe2 {[%emt 0:00:02]} Bb7 {[%emt 0:00:09]} 16. g4 {[%emt 0:00:04]} Qc7 {[%emt 0:00:28]} 17. Bf2 {[%emt 0:00:34]} f5 {[%emt 0:00:42]} 18. Bg3 {[%emt 0:00:16]} Rae8 {[%emt 0:00:04]} 19. Ne3 {[%emt 0:00:05]} fxe4 {[%emt 0:00:06]} 20. dxe4 {[%emt 0:00:03]} Qb6 {[%emt 0:00:07]} 21. Kh2 {[%emt 0:00:16]} d5 {[%emt 0:00:02]} 22. exd5 {[%emt 0:00:16]} exd5 {[%emt 0:00:01]} 23. Qd3 {[%emt 0:00:07]} (23. Rae1 $11) 23... Rd8 {[%emt 0:00:06]} (23... c4 $15 24. Qd2 d4 25. Bxb7 dxc3) 24. f5 {[%emt 0:00:06]} Rf6 $2 {[%emt 0:00:02] [#]} (24... c4 $11 25. Qe2 (25. fxg6+ Nxg6 26. Qd2 d4 $15) 25... gxf5) 25. fxg6+ $18 {[%emt 0:00:05]} Nxg6 {[%emt 0:00:04]} 26. Nf5 {[%emt 0:00:21]} ({Inferior is} 26. Bxd5 Re6 27. Rf7 (27. c4 $2 bxc4 28. Nxc4 Qb5 $19) 27... c4 28. Rxb7 cxd3 $11) (26. Nxd5 Bxd5 27. Bxd5 Kh8) 26... Kh8 {[%emt 0:00:07]} (26... d4 {was called for.}) 27. Rae1 {[%emt 0:00:02]} c4 {[%emt 0:00:05]} (27... Bc8 $142 28. Qd2 (28. Bxd5 Bb7 $15) 28... Bxf5) 28. Qd2 {[%emt 0:00:07]} Rdf8 {[%emt 0:00:03]} 29. Nxh6 $2 {[%emt 0:00:03]} (29. h4 $18 {has better winning chances.}) 29... Rxf1 $16 30. Rxf1 {[%emt 0:00:01]} (30. Bxf1 $16 d4 31. Nf5) 30... Rxf1 $11 {[%emt 0:00:11] Chess con chili.} 31. Bxf1 {[%emt 0:00:01] [#] aiming for Nf5.} d4 $40 {[%emt 0:00:04][%mdl 128] Strongly threatening ...dxc3. Black has some attack.} 32. cxd4 {[%emt 0:00:03] Threatens to win with Nf5.} Bxd4 {[%emt 0:00:02]} (32... Qc6 $1 $15 33. d5 Qxd5 34. Qxd5 Bxd5) 33. Bf2 $2 {[%emt 0:00:09][%mdl 8192] White is now going downhill.} Bxf2 {[%emt 0:00:02][%cal Bd4f2,Bf2g1,Bg1e3,Be3h6][%mdl 32]} 34. Bg2 {[%emt 0:00:03]} Bg1+ {[%emt 0:00:01]} 35. Kh1 {[%emt 0:00:01]} Bxg2+ {[%emt 0:00:01]} 36. Kxg2 {[%emt 0:00:01]} Be3 {[%emt 0:00:01]} 37. Qc2 {[%emt 0:00:02]} Nh4+ {[%emt 0:00:02]} (37... Qc6+ $142 38. Kh2 Bxh6 39. g5 Bxg5 40. Qe2 Bf4+ 41. Kg1 c3 42. bxc3 Qxc3 43. Qe8+ Kg7 44. Qd7+ Kh6 45. Qe6 Qd2 46. Kf1 Be3 47. Qf6 Bd4 48. Qxd4 Qxd4 49. Ke2 Qe4+ 50. Kf2 Nf4 51. Kg3 Kg5 52. h4+ Kf5 53. Kf2 Qe2+ 54. Kg3 Qg2#) 38. Kg3 $19 {[%emt 0:00:02]} Bxh6 {[%emt 0:00:06]} 39. Kxh4 {[%emt 0:00:02]} Qf6+ {[%emt 0:00:01]} 40. Kg3 {[%emt 0:00:01]} Qf4+ {[%emt 0:00:01]} 41. Kg2 {[%emt 0:00:02]} Qf6 $2 {[%emt 0:00:07]} ({Black should play} 41... Qd2+ $19 42. Qxd2 Bxd2) 42. Qe2 $2 {[%emt 0:00:01][%mdl 8192]} (42. Kg3 $11 Qf4+ 43. Kg2) 42... Qc6+ {[%emt 0:00:02]} 43. Kg1 {[%emt 0:00:03]} Qc5+ {[%emt 0:00:00]} 44. Kg2 {[%emt 0:00:02]} Qc6+ {[%emt 0:00:01]} 45. Kg1 $1 {[%emt 0:00:02]} Qb6+ {[%emt 0:00:04]} 46. Kg2 {[%emt 0:00:01]} Qe3 {[%emt 0:00:03]} 47. Qc2 {[%emt 0:00:03]} Qd3 {[%emt 0:00:02]} 48. Qf2 {[%emt 0:00:03]} Qd5+ {[%emt 0:00:01]} 49. Kh2 {[%emt 0:00:02]} Qe5+ {[%emt 0:00:02]} 50. Kg2 {[%emt 0:00:01]} Qe4+ {[%emt 0:00:01]} 51. Kh2 {[%emt 0:00:03]} Bf4+ {[%emt 0:00:01]} 52. Kg1 {[%emt 0:00:01]} Be3 {[%emt 0:00:01] Weighted Error Value: White=0.80/Black=0.81} 0-1

[Event "Women Accentus DAQ Blitz 2022"]
[Site "Biel"]
[Date "2022.07.17"]
[Round "2.1"]
[White "Cornileau, Juliette"]
[Black "Moracchini, Margaux"]
[Result "0-1"]
[ECO "E73"]
[WhiteElo "1900"]
[BlackElo "1937"]
[Annotator "TA"]
[PlyCount "78"]
[EventDate "2022.07.17"]
[EventType "tourn"]
[EventCountry "SUI"]
[SourceTitle "playchess.com"]
[Source "ChessBase"]
[SourceQuality "1"]
[TimeControl "180+2"]

{[%evp 16,78,68,41,98,39,59,64,59,52,53,6,31,-5,-7,-32,22,21,384,375,381,368,369,330,336,330,331,326,371,357,434,413,447,439,495,393,393,310,298,260,258,135,149,77,357,-213,-187,-558,-552,-536,-525,-517,-485,-791,-804,-789,-719,-900,-831,-1279,-1254,-29986,-29987,-29987,-29988]} 1. d4 {[%emt 0:00:03]} Nf6 {[%emt 0:00:01]} 2. c4 {[%emt 0:00:01]} g6 {[%emt 0:00:02]} 3. Nc3 {[%emt 0:00:01]} Bg7 {[%emt 0:00:01]} 4. e4 {[%emt 0:00:01]} d6 {[%emt 0:00:01]} 5. Be2 {[%emt 0:00:01]} O-O {[%emt 0:00:16]} 6. Bg5 {[%emt 0:00:02]} h6 {[%emt 0:00:08]} 7. Be3 {[%emt 0:00:08]} e5 {[%emt 0:00:10]} 8. d5 {[%emt 0:00:08]} a5 {[%emt 0:00:06] 8...Na6 is the modern continuation.} 9. Qd2 {[%emt 0:00:16]} Kh7 {[%emt 0:00:02] E73: King's Indian: Averbakh Variation without 6...c5.} (9... Nxe4 $14 10. Nxe4 f5) 10. Bd1 {[%emt 0:01:12]} ({White should play} 10. h4 $16) 10... Ng4 {[%emt 0:00:08]} 11. Bxg4 {[%emt 0:00:07]} Bxg4 {[%emt 0:00:01] White is slightly better.} 12. f3 {[%emt 0:00:01]} Bd7 {[%emt 0:00:04] [#]} 13. Nge2 $146 {[%emt 0:00:02]} (13. h4 $14) ({Predecessor:} 13. g4 f5 14. h3 Na6 15. O-O-O a4 16. Nge2 fxe4 17. fxe4 Rf3 18. Rdf1 Qf6 19. Rfg1 {0-1 (58) Kretov,E (2269)-Garcia Garcia,A (2247) Chess.com INT 2021}) 13... Na6 {[%emt 0:00:05]} 14. O-O {[%emt 0:00:05]} f5 {[%emt 0:00:03]} 15. f4 {[%emt 0:00:08]} Nc5 {[%emt 0:00:29]} (15... g5 $15 16. g3 (16. fxg5 f4 $17) 16... gxf4 17. gxf4 fxe4) 16. fxe5 {[%emt 0:00:03]} dxe5 {[%emt 0:00:03][%mdl 8192]} 17. Bxc5 $18 {[%emt 0:00:03]} Rf7 {[%emt 0:00:03]} 18. Rad1 {[%emt 0:00:14]} b6 {[%emt 0:00:01]} 19. Be3 {[%emt 0:00:02]} f4 {[%emt 0:00:03]} 20. Bf2 {[%emt 0:00:02]} Qg5 {[%emt 0:00:02]} 21. Kh1 {[%emt 0:00:04]} Qg4 {[%emt 0:00:10]} 22. Ng1 {[%emt 0:00:06]} Raf8 {[%emt 0:00:17]} 23. Nf3 {[%emt 0:00:05]} Qh5 {[%emt 0:00:04]} 24. d6 {[%emt 0:00:22]} c6 {[%emt 0:00:01]} 25. c5 {[%emt 0:00:02]} b5 {[%emt 0:00:03]} 26. Qd3 {[%emt 0:00:15]} g5 {[%emt 0:00:02]} 27. Nb1 {[%emt 0:00:06]} g4 {[%emt 0:00:01]} 28. Nh4 {[%emt 0:00:03]} (28. Ne1 $18) 28... g3 $16 {[%emt 0:00:01] [#]} 29. hxg3 {[%emt 0:00:02]} ({Better is} 29. Nf3 $1) 29... fxg3 $2 {[%emt 0:00:03][%mdl 8192]} (29... Bf6 $16) 30. Qxg3 $4 {[%emt 0:00:02][%mdl 8192]} (30. Bxg3 $18 {was the only winning move.} Bf6 {[#]} 31. Rxf6 $1 {[%mdl 512]} (31. Qf3 $2 Bg4 $17) 31... Rxf6 32. Kg1) 30... Rxf2 $1 $19 {[%emt 0:00:05][%mdl 64] Deflection} 31. Rxf2 {[%emt 0:00:01]} (31. Kg1 {nothing else works.} R8f4 32. Nf3 Rxb2 33. Rd2) 31... Qxd1+ {[%emt 0:00:01]} 32. Kh2 {[%emt 0:00:03]} Rxf2 {[%emt 0:00:02]} (32... Qxb1 $2 33. Rxf8 Qxe4 34. Rf7 $18) 33. Qxf2 {[%emt 0:00:05][%cal Of2f7] Qf7! is the strong threat.} Qxb1 {[%emt 0:00:08]} 34. Qg3 {[%emt 0:00:02]} (34. Qf7 $142 Qxe4 35. Qxd7 Qxh4+ 36. Kg1) 34... Qxe4 {[%emt 0:00:02]} 35. Nf3 {[%emt 0:00:07]} Qf4 {[%emt 0:00:02]} 36. Qxf4 {[%emt 0:00:02]} exf4 {[%emt 0:00:01]} 37. Kg1 {[%emt 0:00:01]} Bxb2 {[%emt 0:00:03]} 38. Nd4 Bxd4+ {[%emt 0:00:01]} 39. Kf1 {[%emt 0:00:02]} Bxc5 {[%emt 0:00:01] Weighted Error Value: White=1.04/Black=0.52} 0-1